[Event "European School-ch G13 2024"]
[Site "Limerick"]
[Date "2024.06.07"]
[Round "7.3"]
[White "Zeybek, Kayla Nil"]
[Black "Dogan, Ipek"]
[Result "1/2-1/2"]
[ECO "A02"]
[WhiteElo "1638"]
[BlackElo "1551"]
[Annotator "NA RC"]
[PlyCount "84"]
[EventDate "2024.05.31"]
[EventType "swiss"]
[EventCountry "IRL"]
[SourceTitle "playchess.com"]
[Source "ChessBase"]
[SourceQuality "1"]
[TimeControl "5400+30"]

1. f4 {[%emt 0:00:03]} Nf6 {[%emt 0:00:12]} 2. Nf3 {[%emt 0:00:03]} g6 {[%emt 0:00:09]} 3. g3 {[%emt 0:00:20]} b6 {[%emt 0:00:12]} 4. Bg2 {[%emt 0:00:07]} Bb7 {[%emt 0:00:05]} 5. d3 {[%emt 0:00:07]} Bg7 {[%emt 0:00:41]} 6. e4 {[%emt 0:00:13]} d6 {[%emt 0:01:09]} 7. O-O {[%emt 0:01:03]} O-O {[%emt 0:01:24]} 8. Nc3 {[%emt 0:00:44]} e5 {[%emt 0:00:38]} 9. Ne2 {[%emt 0:01:39]} Re8 {[%emt 0:00:51]} 10. h3 {[%emt 0:02:00]} d5 {[%emt 0:02:45]} 11. Nxe5 {[%emt 0:14:09]} dxe4 {[%emt 0:02:16]} 12. Nc3 {[%emt 0:04:08]} Qd4+ {[%emt 0:07:16]} 13. Kh2 {[%emt 0:01:32]} Nfd7 {[%emt 0:08:17]} 14. Nxd7 {[%emt 0:06:29]} Nxd7 {[%emt 0:02:16]} 15. Nxe4 {[%emt 0:00:06]} Nc5 {[%emt 0:06:50]} 16. Nxc5 {[%emt 0:03:46]} Bxg2 {[%emt 0:00:20]} 17. Nb3 {[%emt 0:03:40]} Qd5 {[%emt 0:01:17]} 18. Rf2 {[%emt 0:02:58]} Be4 {[%emt 0:01:44]} 19. Nd2 {[%emt 0:11:05]} Bf5 {[%emt 0:03:12]} 20. Qf3 {[%emt 0:04:02]} Qxf3 {[%emt 0:10:39]} 21. Nxf3 {[%emt 0:00:04]} Re7 {[%emt 0:00:44]} 22. Nh4 {[%emt 0:05:42]} Bd7 {[%emt 0:01:16]} 23. f5 {[%emt 0:01:54]} gxf5 {[%emt 0:00:47]} 24. Bg5 {[%emt 0:03:25]} Ree8 {[%emt 0:03:00]} 25. c3 {[%emt 0:04:48]} h6 {[%emt 0:02:33]} 26. Bd2 {[%emt 0:04:19]} Re7 {[%emt 0:03:25]} 27. Raf1 {[%emt 0:02:15]} Rd8 {[%emt 0:02:09]} 28. d4 {[%emt 0:02:36]} a5 {[%emt 0:04:58]} 29. Nxf5 {[%emt 0:01:44]} Bxf5 {[%emt 0:00:20]} 30. Rxf5 {[%emt 0:00:04]} c5 {[%emt 0:01:00]} 31. Kg2 {[%emt 0:10:30]} cxd4 {[%emt 0:02:48]} 32. cxd4 {[%emt 0:00:22]} Rxd4 {[%emt 0:01:09]} 33. Bc3 {[%emt 0:00:35]} Rde4 {[%emt 0:00:22]} 34. Bxg7 {[%emt 0:02:24]} Kxg7 {[%emt 0:00:34]} 35. Rf6 {[%emt 0:02:19]} Re2+ {[%emt 0:04:11]} 36. R1f2 {[%emt 0:00:07]} Rxf2+ {[%emt 0:01:07]} 37. Rxf2 {[%emt 0:00:13]} Re5 {[%emt 0:00:26]} 38. Rd2 {[%emt 0:00:44]} Kf6 {[%emt 0:00:28]} 39. Rd6+ {[%emt 0:01:53]} Re6 {[%emt 0:00:08]} 40. Rxe6+ {[%emt 0:00:02]} Kxe6 {[%emt 0:00:23]} 41. Kf3 {[%emt 0:00:27]} f5 {[%emt 0:08:16]} 42. Kf4 {[%emt 0:00:47]} Kf6 {[%emt 0:00:14]} 1/2-1/2

[Event "European School-ch G13 2024"]
[Site "Limerick"]
[Date "2024.06.07"]
[Round "7.4"]
[White "Doolin, Nemhain"]
[Black "Doolin, Bedhbh"]
[Result "1-0"]
[ECO "B23"]
[WhiteElo "1726"]
[BlackElo "1644"]
[Annotator "NA RC"]
[PlyCount "65"]
[EventDate "2024.05.31"]
[EventType "swiss"]
[EventCountry "IRL"]
[SourceTitle "playchess.com"]
[Source "ChessBase"]
[SourceQuality "1"]
[TimeControl "5400+30"]

1. e4 {[%emt 0:00:08]} c5 {[%emt 0:02:26]} 2. Nc3 {[%emt 0:01:19]} Nc6 {[%emt 0:00:35]} 3. f4 {[%emt 0:00:29]} e6 {[%emt 0:00:32]} 4. Nf3 {[%emt 0:00:07]} a6 {[%emt 0:04:32]} 5. a4 {[%emt 0:02:03]} d5 {[%emt 0:00:31]} 6. e5 {[%emt 0:03:34]} Nge7 {[%emt 0:03:39]} 7. g3 {[%emt 0:03:05]} c4 {[%emt 0:07:09]} 8. Bg2 {[%emt 0:01:45]} Nf5 {[%emt 0:07:43]} 9. d3 {[%emt 0:25:42]} d4 {[%emt 0:16:27]} 10. Ne4 {[%emt 0:06:03]} Bb4+ {[%emt 0:10:14]} 11. c3 {[%emt 0:05:56]} Ba5 {[%emt 0:05:10]} 12. dxc4 {[%emt 0:20:20]} O-O {[%emt 0:21:16]} 13. b4 {[%emt 0:03:15]} Bb6 {[%emt 0:01:00]} 14. c5 {[%emt 0:01:03]} Bc7 {[%emt 0:00:56]} 15. Rb1 {[%emt 0:03:59]} Qd5 {[%emt 0:02:09]} 16. Nxd4 {[%emt 0:03:57]} Qc4 {[%emt 0:06:44]} 17. Nxc6 {[%emt 0:03:24]} bxc6 {[%emt 0:00:30]} 18. Qe2 {[%emt 0:02:02]} Qxe2+ {[%emt 0:01:56]} 19. Kxe2 {[%emt 0:00:14]} Rb8 {[%emt 0:00:25]} 20. Nd6 {[%emt 0:00:47]} Bxd6 {[%emt 0:00:24]} 21. cxd6 {[%emt 0:01:06]} Bd7 {[%emt 0:00:17]} 22. Be3 {[%emt 0:02:42]} f6 {[%emt 0:01:51]} 23. c4 {[%emt 0:03:20]} fxe5 {[%emt 0:00:46]} 24. fxe5 {[%emt 0:00:15]} Nxe3 {[%emt 0:00:15]} 25. Kxe3 {[%emt 0:00:04]} Rf5 {[%emt 0:00:20]} 26. Kd4 {[%emt 0:01:44]} Rbf8 {[%emt 0:00:41]} 27. Rhf1 {[%emt 0:00:43]} Rf2 {[%emt 0:00:39]} 28. Rxf2 {[%emt 0:03:05]} Rxf2 {[%emt 0:00:15]} 29. Rg1 {[%emt 0:00:53]} Rb2 {[%emt 0:00:33]} 30. Kc5 {[%emt 0:00:19]} Re2 {[%emt 0:00:14]} 31. Bxc6 {[%emt 0:00:42]} Bxc6 {[%emt 0:05:51]} 32. Kxc6 {[%emt 0:00:07]} Rxe5 {[%emt 0:00:00]} 33. d7 {[%emt 0:00:20]} 1-0

[Event "European School-ch G13 2024"]
[Site "Limerick"]
[Date "2024.06.07"]
[Round "7.5"]
[White "Babijczuk, Nina"]
[Black "Tumer, Eylul"]
[Result "0-1"]
[ECO "D00"]
[WhiteElo "1514"]
[BlackElo "1539"]
[Annotator "NA RC"]
[PlyCount "26"]
[EventDate "2024.05.31"]
[EventType "swiss"]
[EventCountry "IRL"]
[SourceTitle "playchess.com"]
[Source "ChessBase"]
[SourceQuality "1"]
[TimeControl "5400+30"]

1. d4 {[%emt 0:00:03]} d5 {[%emt 0:00:12]} 2. Nc3 {[%emt 0:00:11]} c5 {[%emt 0:00:07]} 3. e4 {[%emt 0:02:16]} dxe4 {[%emt 0:00:52]} 4. Nxe4 {[%emt 0:01:59]} cxd4 {[%emt 0:01:03]} 5. Bb5+ {[%emt 0:00:27]} Bd7 {[%emt 0:00:41]} 6. Bc4 {[%emt 0:00:53]} Bc6 {[%emt 0:04:33]} 7. Qe2 {[%emt 0:00:37]} e6 {[%emt 0:01:28]} 8. Bg5 {[%emt 0:00:28]} Qa5+ {[%emt 0:01:28]} 9. c3 {[%emt 0:00:26]} dxc3 {[%emt 0:00:46]} 10. bxc3 {[%emt 0:01:17]} Bxe4 {[%emt 0:01:21]} 11. Qxe4 {[%emt 0:02:27]} Qxc3+ {[%emt 0:00:40]} 12. Ke2 {[%emt 0:01:00]} Qb2+ {[%emt 0:01:27]} 13. Kf3 {[%emt 0:01:13]} Nc6 {[%emt 0:05:43]} 0-1